bitfinex-derivatives/quotes_SOLF0:USTF0_20241229
["timestamp","ask_amount","ask_price","bid_price","bid_amount"]
[1735497879623,8.27156796,193.25,193.21,2.5923]
[1735497880122,8.27156796,193.25,193.18,11.21156796]
[1735497882420,8.27156796,193.25,193.21,2.5923]
[1735497887125,8.27156796,193.25,193.18,11.21156796]
[1735497887319,2.592,193.24,193.2,2.5924]
[1735497887524,8.27156796,193.25,193.2,2.94]
[1735497887726,8.27156796,193.23,193.19,2.94]
[1735497888125,8.27156796,193.23,193.18,5.5327]
[1735497888326,8.27156796,193.23,193.18,2.94]
[1735497888527,10.86366796,193.23,193.19,2.5926]
[1735497888723,8.27156796,193.23,193.18,2.94]
[1735497888930,57.5818542,193.28,193.18,2.94]
[1735497889129,8.27156796,193.24,193.18,2.94]
[1735497889523,2.5921,193.23,193.18,2.94]
[1735497889827,8.27156796,193.22,193.18,2.94]
[1735497891528,10.86376796,193.22,193.18,5.5327]
[1735497892330,2.5922,193.22,193.19,2.5926]
[1735497892530,2.5921,193.23,193.19,2.5926]
[1735497897230,8.27156796,193.24,193.18,11.21156796]
[1735497897538,8.27156796,193.26,193.2,8.27156796]
[1735497897834,8.27156796,193.26,193.21,2.94]
[1735497898733,8.27156796,193.24,193.21,2.94]
[1735497899436,2.5921,193.23,193.21,2.94]
[1735497902239,2.5922,193.22,193.18,5.5326]
[1735497902434,8.27156796,193.22,193.14,1.5751]
[1735497902638,8.27156796,193.2,193.15,2.94]
[1735497903035,2.5926,193.2,193.15,2.94]
[1735497903229,8.27156796,193.23,193.17,8.27156796]
[1735497903743,8.27156796,193.23,193.2,2.5925]
[1735497904533,10.86366796,193.23,193.17,8.27156796]
[1735497904734,8.27156796,193.23,193.19,2.5926]
[1735497905340,8.27156796,193.23,193.15,8.27156796]
[1735497905640,8.27156796,193.21,193.15,2.94]
[1735497906232,2.5926,193.19,193.15,5.533]
[1735497907346,2.5926,193.19,193.16,2.593]
[1735497908140,10.86416796,193.19,193.16,2.593]
[1735497915253,8.27156796,193.17,193.1,2.94]
[1735497915448,8.27156796,193.14,193.08,8.27156796]
[1735497915947,2.5934,193.13,193.09,5.5339]
[1735497916145,8.27156796,193.14,193.09,2.94]
[1735497917152,2.5936,193.12,193.09,2.94]
[1735497917354,8.27156796,193.14,193.09,2.94]
[1735497917950,8.27156796,193.14,193.06,8.27156796]
[1735497918156,2.5934,193.13,193.09,2.5939]
[1735497918656,10.86486796,193.14,193.1,2.5937]
[1735497920756,8.27156796,193.14,193.13,2.5934]
[1735497921058,8.27156796,193.16,193.13,2.5934]
[1735497923360,10.86456796,193.16,193.13,2.5934]
[1735497925059,8.27156796,193.14,193.13,2.5934]
[1735497931462,8.27156796,193.14,193.12,2.5935]
[1735497933864,10.86456796,193.16,193.12,2.5935]
[1735497934665,8.27156796,193.16,193.11,2.94]
[1735497934873,8.27156796,193.16,193.11,11.21156796]
[1735497935362,8.27156796,193.16,193.12,2.5935]
[1735497935567,8.27156796,193.16,193.11,11.21156796]
[1735497936170,8.27156796,193.16,193.13,2.5933]
[1735497936569,10.86456796,193.16,193.13,2.5933]
[1735497938665,8.27156796,193.16,193.14,2.5932]
[1735497938858,8.27156796,193.18,193.12,8.27156796]
[1735497940465,8.27156796,193.18,193.16,2.5929]
[1735497941059,10.86436796,193.18,193.15,2.5931]
[1735497943268,8.27156796,193.18,193.15,2.5931]
[1735497951271,8.27156796,193.16,193.13,2.5933]
[1735497951680,8.27156796,193.14,193.08,8.27156796]
[1735497951878,10.86496796,193.14,193.1,2.5938]
[1735497952580,10.86516796,193.12,193.08,2.5941]
[1735497952772,10.86516796,193.12,193.08,5.5341]
[1735497953477,8.27156796,193.14,193.08,11.21156796]
[1735497953674,8.27156796,193.16,193.1,8.27156796]
[1735497954277,8.27156796,193.17,193.1,8.27156796]
[1735497954578,8.27156796,193.17,193.12,8.27156796]
[1735497954772,8.27156796,193.17,193.13,2.94]
[1735497954970,8.27156796,193.17,193.14,2.5933]
[1735497957480,8.27156796,193.17,193.15,2.5931]
[1735497958987,8.27156796,193.19,193.16,2.5929]
[1735497959173,8.89431492,193.21,193.15,8.27156796]
[1735497959372,57.5818542,193.22,193.15,8.27156796]
[1735497959581,8.27156796,193.2,193.13,11.21156796]
[1735497960484,8.27156796,193.2,193.15,2.5931]
[1735497960980,2.5928,193.18,193.14,2.5932]
[1735497961784,2.5926,193.19,193.15,2.5931]
[1735497962584,8.27156796,193.2,193.17,2.5929]
[1735497964584,8.9029543,193.24,193.18,2.94]
[1735497964787,17.17452226,193.24,193.19,2.94]
[1735497964990,8.27156796,193.24,193.19,2.94]
[1735497965292,10.86356796,193.24,193.16,8.27156796]
[1735497965489,10.86356796,193.24,193.19,2.94]
[1735497965886,10.86356796,193.24,193.2,2.5925]
[1735497967191,10.86386796,193.22,193.18,2.5927]
[1735497967387,8.27156796,193.22,193.17,2.94]
[1735497967892,8.27156796,193.2,193.17,5.5328]
[1735497969292,8.27156796,193.2,193.17,2.5928]
[1735497975402,2.5924,193.21,193.16,2.94]
[1735497975592,2.5924,193.21,193.18,2.5927]
[1735497983907,10.86376796,193.22,193.18,2.5927]
[1735497987006,8.27156796,193.22,193.2,2.5924]
[1735497987317,12.96687004,193.26,193.21,2.94]
[1735497987318,8.27156796,193.25,193.21,2.94]
[1735497987609,10.86336796,193.25,193.21,5.5323]
[1735497992114,2.5919,193.24,193.21,5.5323]
[1735497996014,8.27156796,193.25,193.21,2.94]
[1735497996315,10.86336796,193.25,193.22,2.5922]
[1735497996510,8.27156796,193.25,193.21,2.94]
[1735497996709,2.5919,193.24,193.21,5.5322]
[1735497996914,8.27156796,193.25,193.21,2.94]
[1735497997613,10.86346796,193.25,193.22,2.5922]
[1735498002119,4.06490998,193.26,193.23,2.592]
[1735498004415,2.5912,193.3,193.27,2.5915]
[1735498005619,2.5913,193.29,193.26,5.5316]
[1735498005917,10.86286796,193.29,193.26,5.5316]
[1735498008118,8.27156796,193.29,193.26,5.5316]
[1735498014515,2.591,193.32,193.26,2.94]
[1735498014817,10.86256796,193.32,193.26,2.94]
[1735498016026,10.86256796,193.32,193.28,2.5913]
[1735498018324,8.27156796,193.32,193.26,2.94]
[1735498018522,10.86276796,193.3,193.26,5.5316]
[1735498022732,10.86276796,193.3,193.27,2.5915]
[1735498027735,8.27156796,193.3,193.26,2.94]
[1735498028033,8.27156796,193.32,193.29,2.5912]
[1735498034530,8.90693891,193.34,193.32,2.5908]
[1735498034531,66.48879311,193.34,193.32,2.5908]
[1735498034733,65.85342216,193.34,193.32,2.5908]
[1735498035841,57.5818542,193.34,193.33,2.5907]
[1735498036340,77.95571262,193.36,193.34,2.5906]
[1735498037842,8.27156796,193.36,193.34,2.5906]
[1735498043247,2.5902,193.37,193.34,2.5906]
[1735498043444,10.86176796,193.37,193.34,2.5906]
[1735498045237,2.5902,193.37,193.34,2.5906]
[1735498045441,10.86176796,193.37,193.34,2.5906]
[1735498049354,52.723634,193.38,193.33,2.5906]
[1735498049543,64.58367242,193.42,193.34,8.27156796]
[1735498049852,8.27156796,193.4,193.34,8.27156796]
[1735498050046,64.58367242,193.42,193.34,8.27156796]
[1735498050248,11.49863933,193.41,193.34,8.27156796]
[1735498050452,2.5897,193.41,193.34,8.27156796]
[1735498051354,2.5897,193.41,193.35,8.27156796]
[1735498051545,2.5897,193.41,193.37,2.5901]
[1735498052852,5.49901822,193.42,193.37,8.27156796]
[1735498053444,11.49116497,193.46,193.42,2.5895]
[1735498053762,10.86056796,193.46,193.42,2.5895]
[1735498054562,57.5818542,193.5,193.41,2.94]
[1735498054748,8.27156796,193.42,193.32,3.2258]
[1735498054954,8.27156796,193.4,193.33,2.94]
[1735498055351,2.5898,193.4,193.34,8.27156796]
[1735498055648,8.27156796,193.38,193.33,2.94]
[1735498056057,1.458,193.47,193.34,2.5906]
[1735498056254,14.23392987,193.47,193.34,2.5906]
[1735498056457,8.27156796,193.4,193.34,2.5906]
[1735498056755,2.59,193.39,193.34,2.5906]
[1735498059353,2.59,193.39,193.35,2.5904]
[1735498060056,3.1618,193.45,193.33,5.5307]
[1735498060057,10.86176796,193.38,193.33,5.5307]
[1735498060555,8.27156796,193.39,193.33,2.94]
[1735498060751,8.27156796,193.37,193.31,2.94]
[1735498060956,2.94,193.42,193.32,2.94]
[1735498061156,10.86216796,193.35,193.32,2.94]
[1735498061349,8.27156796,193.35,193.3,2.591]
[1735498061552,8.27156796,193.35,193.3,5.531]
[1735498062055,8.27156796,193.37,193.3,5.531]
[1735498062357,8.27156796,193.37,193.31,8.27156796]
[1735498062853,8.27156796,193.39,193.31,8.27156796]
[1735498063048,69.63021813,193.43,193.33,8.27156796]
[1735498063253,8.27156796,193.4,193.33,8.27156796]
[1735498063457,8.27156796,193.4,193.34,2.94]
[1735498063659,2.5901,193.38,193.34,5.5306]
[1735498065958,3.92592317,193.43,193.37,8.27156796]
[1735498066251,59.1663542,193.45,193.37,8.27156796]
[1735498066557,2.5894,193.44,193.37,8.27156796]
[1735498067059,10.86076796,193.45,193.41,2.5896]
[1735498069462,10.86076796,193.45,193.39,2.94]
[1735498069463,8.27156796,193.45,193.39,2.94]
[1735498069759,8.27156796,193.43,193.39,5.5298]
[1735498070552,10.86106796,193.43,193.39,5.5298]
[1735498071663,10.86086796,193.45,193.41,2.5896]
[1735498072962,69.64304993,193.5,193.43,2.5894]
[1735498073353,8.27156796,193.47,193.43,2.5894]
[1735498073956,57.5818542,193.5,193.46,2.589]
[1735498074159,57.5818542,193.5,193.44,2.94]
[1735498074965,10.85986796,193.51,193.47,2.5888]
[1735498075168,69.64304993,193.55,193.47,2.5888]
[1735498075360,8.27156796,193.51,193.47,2.5888]
[1735498075556,8.27156796,193.53,193.48,2.5887]
[1735498075766,8.27156796,193.53,193.49,2.94]
[1735498075966,2.5882,193.53,193.49,2.94]
[1735498076162,52.5533153,193.56,193.49,2.94]
[1735498076364,65.50044043,193.57,193.49,2.94]
[1735498076663,8.27156796,193.54,193.49,2.94]
[1735498077267,8.27156796,193.54,193.5,2.5884]
[1735498078270,8.27156796,193.54,193.49,2.94]
[1735498078472,10.85986796,193.52,193.49,2.94]
[1735498078668,8.27156796,193.54,193.49,2.94]
[1735498079362,8.27156796,193.52,193.49,2.94]
[1735498079970,10.85986796,193.52,193.47,2.5888]
[1735498080169,8.27156796,193.52,193.48,2.92]
[1735498080771,8.27156796,193.5,193.48,2.92]
[1735498080970,8.27156796,193.5,193.42,4.6028]
[1735498081272,8.27156796,193.48,193.43,2.92]
[1735498081868,2.589,193.46,193.43,2.92]
[1735498082570,8.27156796,193.45,193.43,2.92]
[1735498083169,8.27156796,193.45,193.41,2.75347525]
[1735498083476,8.27156796,193.43,193.4,2.92]
[1735498084376,2.5894,193.43,193.4,2.92]
[1735498085877,2.5893,193.44,193.4,5.5098]
[1735498090282,8.27156796,193.45,193.42,2.5895]
[1735498090580,2.589,193.46,193.42,2.5895]
[1735498090783,10.86046796,193.47,193.42,2.5895]
[1735498090971,10.86046796,193.47,193.42,8.27156796]
[1735498091385,10.86046796,193.47,193.43,2.5893]
[1735498092075,2.5887,193.48,193.43,2.5893]
[1735498092273,9.76256796,193.52,193.44,8.27156796]
[1735498092482,8.27156796,193.52,193.45,2.94]
[1735498092676,8.27156796,193.52,193.46,8.27156796]
[1735498093473,2.5883,193.51,193.47,2.5888]
[1735498095183,10.85976796,193.52,193.48,2.5887]
[1735498095378,8.27156796,193.52,193.46,8.27156796]
[1735498095579,8.27156796,193.54,193.48,8.27156796]
[1735498095785,7.91858623,193.57,193.48,8.27156796]
[1735498096085,8.27156796,193.54,193.48,8.27156796]
[1735498097683,8.27156796,193.54,193.5,2.5883]
[1735498097884,8.27156796,193.54,193.51,2.92]
[1735498099490,10.85946796,193.54,193.51,2.92]
[1735498099686,8.27156796,193.52,193.5,2.92]
[1735498100687,2.5883,193.51,193.5,2.92]
[1735498102191,2.5886,193.49,193.45,2.5891]
[1735498102385,2.5886,193.49,193.46,2.92]
[1735498103790,8.27156796,193.5,193.46,5.509]
[1735498103991,10.86006796,193.5,193.46,5.509]
[1735498104691,8.27156796,193.5,193.47,2.5888]
[1735498104988,2.5883,193.51,193.47,2.5888]
[1735498106789,10.85976796,193.52,193.48,2.5887]
[1735498106984,7.91858623,193.57,193.46,2.92]
[1735498107190,8.27156796,193.52,193.46,2.92]
[1735498108399,10.85976796,193.52,193.48,2.5886]
[1735498110095,8.27156796,193.54,193.47,8.27156796]
[1735498110498,10.85946796,193.54,193.49,2.5886]
[1735498110699,10.85946796,193.54,193.47,8.27156796]
[1735498111204,2.5881,193.53,193.49,2.5886]
[1735498112300,8.27156796,193.52,193.46,2.92]
[1735498112895,8.27156796,193.5,193.44,8.27156796]
[1735498113096,8.27156796,193.48,193.45,2.94]
[1735498113508,8.27156796,193.48,193.45,5.529]
[1735498114096,8.27156796,193.48,193.46,2.94]
[1735498114404,2.5889,193.47,193.46,2.94]
[1735498115906,8.27156796,193.48,193.42,2.5895]
[1735498116102,8.27156796,193.45,193.43,2.94]
[1735498116904,8.27156796,193.45,193.4,5.34150961]
[1735498117105,8.27156796,193.45,193.41,2.94]
[1735498118408,2.5893,193.44,193.41,2.94]
[1735498118708,8.27156796,193.46,193.42,2.5895]
[1735498119808,10.86066796,193.46,193.42,2.5895]
[1735498126408,2.5891,193.46,193.41,2.94]
[1735498126609,2.5891,193.46,193.43,2.5894]
[1735498128312,8.27156796,193.45,193.41,2.94]
[1735498128507,10.86066796,193.45,193.41,5.5295]
[1735498129310,10.86066796,193.45,193.42,2.5895]
[1735498130414,10.86066796,193.45,193.42,5.5295]
[1735498131609,2.5891,193.45,193.42,5.5295]
[1735498131808,2.589,193.46,193.42,5.5295]
[1735498136416,2.589,193.46,193.42,2.94]
[1735498136711,2.5889,193.47,193.44,2.5892]
[1735498137612,10.86046796,193.47,193.43,2.5893]
[1735498140717,8.27156796,193.45,193.42,2.94]
[1735498141910,2.5893,193.44,193.42,2.94]
[1735498142214,8.27156796,193.43,193.42,2.94]
[1735498142415,2.5896,193.42,193.4,2.75180961]
[1735498143620,10.86096796,193.43,193.4,2.75180961]
[1735498144416,10.86096796,193.43,193.4,5.34160961]
[1735498145221,10.86096796,193.43,193.4,2.75180961]
[1735498145921,2.5895,193.42,193.4,2.75180961]
[1735498146324,8.27156796,193.43,193.4,2.75180961]
[1735498146621,8.27156796,193.47,193.4,11.02337757]
[1735498148121,8.27156796,193.47,193.44,2.5892]
[1735498148323,8.27156796,193.47,193.45,2.96]
[1735498148918,8.27156796,193.49,193.46,2.589]
[1735498150021,10.86016796,193.49,193.46,2.589]
[1735498150221,10.86016796,193.49,193.45,5.5491]
[1735498151113,2.5889,193.47,193.45,2.96]
[1735498156521,8.27156796,193.5,193.45,2.96]
[1735498156720,8.27156796,193.48,193.4,2.75180961]
[1735498156923,2.589,193.46,193.43,2.5893]
[1735498157319,8.27156796,193.48,193.41,2.96]
[1735498157520,2.5889,193.47,193.43,2.5894]
[1735498159326,2.5889,193.47,193.44,2.5892]
[1735498160028,10.86026796,193.48,193.44,2.5892]
[1735498160526,10.86026796,193.48,193.41,2.96]
[1735498160731,8.27156796,193.48,193.45,2.589]
[1735498163032,8.27156796,193.48,193.46,2.96]
[1735498163730,10.86006796,193.5,193.46,5.549]
[1735498164129,8.91530109,193.53,193.49,2.5885]
[1735498164321,10.85976796,193.52,193.49,2.5885]
[1735498165023,2.5881,193.53,193.48,8.27156796]
[1735498165333,65.85342216,193.54,193.5,2.5883]
[1735498165534,8.27156796,193.54,193.51,2.96]
[1735498166230,10.85956796,193.54,193.51,2.96]
[1735498167137,2.5881,193.53,193.51,2.96]
[1735498168733,8.27156796,193.52,193.51,2.96]
[1735498169833,2.5881,193.53,193.51,2.96]
[1735498170234,8.27156796,193.52,193.51,2.96]
[1735498174639,10.85976796,193.52,193.51,2.96]
[1735498174942,8.27156796,193.52,193.47,2.96]
[1735498175140,10.86026796,193.49,193.47,2.96]
[1735498175739,10.86026796,193.49,193.45,2.5891]
[1735498175740,2.5887,193.48,193.45,2.5891]
[1735498175938,8.27156796,193.47,193.45,2.96]
[1735498176337,10.86046796,193.47,193.45,2.96]
[1735498176839,8.27156796,193.47,193.45,2.96]
[1735498183444,2.589,193.46,193.45,2.96]
[1735498185042,8.27156796,193.47,193.41,2.5896]
[1735498185246,10.86066796,193.45,193.42,5.5495]
[1735498185738,2.5893,193.44,193.41,5.5496]
[1735498185944,8.27156796,193.43,193.41,2.96]
[1735498186444,8.27156796,193.43,193.39,2.96]
[1735498188342,2.5896,193.42,193.39,2.96]
[1735498193047,2.5896,193.42,193.39,5.5499]
[1735498202450,10.86096796,193.43,193.4,2.5898]
[1735498204144,8.91092252,193.5,193.4,8.27156796]
[1735498204551,8.27156796,193.47,193.4,8.27156796]
[1735498204754,8.27156796,193.47,193.42,2.5895]
[1735498204955,8.27156796,193.47,193.4,8.27156796]
[1735498205151,8.27156796,193.45,193.39,2.96]
[1735498205358,8.27156796,193.45,193.43,2.5893]
[1735498205557,8.27156796,193.45,193.44,2.94]
[1735498205855,10.86056796,193.47,193.44,2.94]
[1735498207356,10.86016796,193.49,193.46,2.589]
[1735498207757,8.27156796,193.51,193.44,11.21156796]
[1735498207954,57.5818542,193.53,193.5,2.5883]
[1735498208156,65.85342216,193.53,193.5,2.94]
[1735498208757,8.27156796,193.53,193.5,2.94]
[1735498208953,12.2384361,193.55,193.5,2.94]
[1735498209657,14.8262361,193.55,193.5,5.5283]
[1735498211058,14.8262361,193.55,193.5,2.94]
[1735498211359,14.8262361,193.55,193.51,2.5883]
[1735498213157,2.5879,193.54,193.51,2.5883]
[1735498214562,14.8262361,193.55,193.51,2.5883]
[1735498220173,10.85936796,193.55,193.51,2.5883]
[1735498221472,2.5878,193.55,193.51,2.5883]
[1735498225074,2.5873,193.59,193.55,2.5877]
[1735498225373,10.85886796,193.59,193.55,5.5277]
[1735498230278,10.85886796,193.59,193.56,2.5877]
[1735498230473,2.5871,193.6,193.55,11.21156796]
[1735498231080,2.5871,193.6,193.56,2.5876]
[1735498238479,2.5875,193.58,193.55,2.94]
[1735498239288,8.27156796,193.59,193.52,1.5995]
[1735498239478,8.27156796,193.59,193.53,2.92]
[1735498240586,2.5878,193.56,193.53,2.92]
[1735498242382,2.5879,193.54,193.5,2.5884]
[1735498242690,8.27156796,193.55,193.51,2.92]
[1735498243078,2.5884,193.51,193.46,2.5889]
[1735498243388,8.27156796,193.51,193.44,8.27156796]
[1735498243587,2.5888,193.48,193.45,2.94]
[1735498244286,8.27156796,193.49,193.38,4.48135147]
[1735498244287,2.5891,193.45,193.42,2.94]
[1735498244485,8.27156796,193.47,193.42,2.94]
[1735498245082,2.5891,193.46,193.42,2.94]
[1735498245485,8.27156796,193.45,193.42,2.94]
[1735498246491,10.86076796,193.45,193.42,2.94]
[1735498247292,8.27156796,193.45,193.42,2.94]
[1735498247485,2.5893,193.44,193.42,2.94]
[1735498249688,10.86106796,193.43,193.4,2.94]
[1735498251492,10.86106796,193.43,193.39,2.5899]
[1735498251794,10.86106796,193.43,193.39,5.5299]
[1735498253388,4.24222136,193.5,193.4,8.27156796]
[1735498253590,4.24222136,193.5,193.39,2.94]
[1735498253889,8.27156796,193.46,193.39,2.94]
[1735498254083,8.27156796,193.46,193.39,11.21156796]
[1735498254285,10.86056796,193.46,193.41,2.5895]
[1735498254591,10.86056796,193.46,193.39,11.21156796]
[1735498254890,10.86056796,193.46,193.42,2.5895]
[1735498255082,8.27156796,193.44,193.39,2.94]
[1735498255490,8.27156796,193.44,193.4,2.5897]
[1735498256890,8.27156796,193.44,193.41,2.5897]
[1735498259295,2.5892,193.45,193.41,2.5897]
[1735498260094,2.5892,193.45,193.41,10.86126796]
[1735498260397,2.589,193.46,193.42,2.5895]
[1735498260890,10.86046796,193.47,193.43,2.5894]
[1735498261096,10.86046796,193.47,193.44,3.0]
[1735498261293,3.0649,193.52,193.45,2.5891]
[1735498261599,10.86016796,193.49,193.44,3.0]
[1735498262397,10.86016796,193.49,193.45,2.5891]
[1735498263495,2.5886,193.49,193.45,2.5891]
[1735498264393,8.27156796,193.48,193.45,2.5891]
[1735498264597,10.86026796,193.48,193.45,2.5891]
[1735498267400,10.86006796,193.5,193.46,2.5889]
[1735498267602,10.86006796,193.5,193.44,11.27156796]
[1735498268099,2.5883,193.52,193.48,2.5886]
[1735498268294,2.5883,193.52,193.49,3.0]
[1735498269098,2.5884,193.51,193.49,3.0]
[1735498271295,2.5882,193.52,193.49,3.0]
[1735498271700,8.27156796,193.53,193.49,3.0]
[1735498271901,10.85966796,193.53,193.49,5.5885]
[1735498272306,10.85966796,193.53,193.49,3.0]
[1735498272502,10.85966796,193.53,193.5,2.5884]
[1735498275008,8.27156796,193.53,193.51,2.5883]
[1735498275201,10.85946796,193.55,193.51,2.5883]
[1735498276304,8.27156796,193.55,193.52,2.5881]
[1735498277709,8.27156796,193.57,193.52,2.5881]
[1735498278009,8.27156796,193.57,193.53,2.588]
[1735498278209,8.27156796,193.57,193.54,2.98]
[1735498278605,10.85936796,193.55,193.54,2.98]
[1735498286012,2.5883,193.51,193.5,2.98]
[1735498286211,10.85986796,193.51,193.5,2.98]
[1735498288004,2.5883,193.51,193.5,2.98]
[1735498289615,8.27156796,193.56,193.5,2.98]
[1735498290717,2.5879,193.55,193.51,2.5883]
[1735498292713,2.5879,193.55,193.5,11.25156796]
[1735498292714,2.5879,193.54,193.5,5.5684]
[1735498292909,8.27156796,193.54,193.5,5.5684]
[1735498293518,2.5882,193.52,193.5,2.98]
[1735498298529,8.27156796,193.56,193.5,2.98]
[1735498298722,2.5878,193.55,193.52,2.5882]
[1735498299124,8.27156796,193.56,193.5,11.25156796]
[1735498299320,65.85342216,193.58,193.54,2.5879]
[1735498299628,65.85342216,193.58,193.5,11.25156796]
[1735498300025,8.27156796,193.58,193.5,11.25156796]
[1735498300424,2.5877,193.56,193.53,2.588]
[1735498301530,8.27156796,193.56,193.52,2.5881]
[1735498301731,2.5878,193.55,193.52,2.5881]
[1735498302323,2.588,193.54,193.51,2.5883]
[1735498303634,8.27156796,193.56,193.51,2.5883]
[1735498303936,2.5878,193.55,193.51,2.5883]
[1735498306238,8.27156796,193.54,193.45,1.5671]
[1735498306433,8.27156796,193.54,193.49,2.5886]
[1735498307636,2.5883,193.52,193.49,2.5886]
[1735498313538,8.27156796,193.54,193.46,8.27156796]
[1735498313740,2.5884,193.51,193.47,5.5887]
[1735498319841,2.5884,193.51,193.47,3.0]
[1735498320042,2.5884,193.51,193.48,2.5887]
[1735498322742,2.5882,193.53,193.49,2.5885]
[1735498324145,8.27156796,193.54,193.49,2.5885]
[1735498324448,2.5882,193.52,193.49,2.5885]
[1735498325140,8.91721607,193.56,193.47,3.0]
[1735498325345,8.91721607,193.56,193.5,8.27156796]
[1735498325546,65.85342216,193.57,193.5,8.27156796]
[1735498325944,8.27156796,193.57,193.5,8.27156796]
[1735498326244,8.27156796,193.57,193.52,2.5882]
[1735498326443,8.27156796,193.55,193.53,2.96]
[1735498326647,8.27156796,193.55,193.51,2.96]
[1735498327149,2.5879,193.54,193.51,2.96]
[1735498327745,8.27156796,193.55,193.51,2.96]
[1735498327948,2.5881,193.53,193.51,2.96]
[1735498328849,2.588,193.54,193.51,2.96]
[1735498329745,2.588,193.54,193.51,5.5483]
[1735498330551,8.27156796,193.55,193.51,2.96]
[1735498330851,8.27156796,193.55,193.52,2.5881]
[1735498333246,2.5877,193.56,193.53,2.588]
[1735498333451,8.87053457,193.57,193.52,8.27156796]
[1735498333849,8.87053457,193.57,193.55,2.5877]
[1735498334051,57.5818542,193.58,193.55,2.5877]
[1735498334751,8.27156796,193.59,193.55,2.5877]
[1735498335152,10.85886796,193.59,193.56,2.5876]
[1735498336843,10.85886796,193.59,193.56,5.5476]
[1735498338153,10.85886796,193.59,193.56,2.96]
[1735498341949,2.5873,193.59,193.56,2.96]
[1735498342151,10.85886796,193.59,193.56,2.96]
[1735498343555,8.27156796,193.59,193.54,2.5879]
[1735498343854,8.27156796,193.59,193.54,5.5479]
[1735498344549,2.5875,193.57,193.54,5.5479]
[1735498346558,2.5874,193.58,193.54,5.5479]
[1735498348154,8.27156796,193.59,193.54,5.5479]
[1735498348357,2.5875,193.57,193.54,5.5479]
[1735498349551,8.27156796,193.55,193.51,2.94]
[1735498349757,8.27156796,193.55,193.48,8.27156796]
[1735498349959,8.27156796,193.55,193.49,2.94]
[1735498350256,8.27156796,193.55,193.51,2.5882]
[1735498350257,10.85936796,193.55,193.51,2.5882]
[1735498350650,8.27156796,193.53,193.45,3.0242]
[1735498350847,8.27156796,193.53,193.47,8.27156796]
[1735498351449,8.27156796,193.53,193.48,2.94]
[1735498352449,10.85966796,193.53,193.49,2.5885]
[1735498352856,2.5881,193.53,193.49,2.5885]
[1735498353056,10.85966796,193.53,193.49,2.5885]
[1735498353257,8.27156796,193.53,193.48,2.94]
[1735498353556,2.5885,193.5,193.48,2.94]
[1735498356658,2.5885,193.5,193.47,5.5288]
[1735498361468,8.27156796,193.5,193.47,2.94]
[1735498362467,10.86016796,193.5,193.47,2.94]
[1735498363967,8.86600201,193.56,193.47,2.94]
[1735498364165,10.85996796,193.51,193.47,5.5288]
[1735498365070,2.5885,193.5,193.47,2.94]
[1735498366066,2.5886,193.49,193.46,5.5289]
[1735498367462,8.27156796,193.51,193.46,2.94]
[1735498367767,2.5889,193.47,193.44,5.5292]
[1735498375671,1.4883,193.54,193.44,2.94]
[1735498375872,8.27156796,193.52,193.44,11.21156796]
[1735498377273,10.86006796,193.5,193.44,11.21156796]
[1735498377869,10.86006796,193.5,193.46,2.5889]
[1735498382268,2.5885,193.5,193.46,2.5889]
[1735498383977,2.5886,193.49,193.46,2.5889]
[1735498384176,8.27156796,193.49,193.43,2.87569687]
[1735498384376,8.27156796,193.49,193.44,2.94]
[1735498384577,2.5893,193.44,193.42,2.94]
[1735498385077,2.5893,193.44,193.41,2.94]
[1735498385479,2.5893,193.44,193.41,5.5296]
[1735498387178,2.5893,193.44,193.41,2.5896]
[1735498387477,2.5893,193.44,193.42,2.94]
[1735498388378,2.5893,193.44,193.41,2.94]
[1735498388875,2.5893,193.44,193.4,71.93066464]
[1735498390676,2.5893,193.44,193.4,13.80136796]
[1735498390873,2.5893,193.44,193.4,10.86136796]
[1735498391078,2.5893,193.44,193.4,5.5298]